bitfinex/quotes_BTCUSD_20230113
["timestamp","ask_amount","ask_price","bid_price","bid_amount"]
[1673639828626,0.0116106,19352.0,19351.0,1.985946]
[1673639828878,0.0116106,19352.0,19351.0,2.84883043]
[1673639829598,0.00898386,19352.0,19351.0,2.84883043]
[1673639829829,0.00898386,19352.0,19351.0,2.93753043]
[1673639831538,0.00898386,19352.0,19351.0,2.47847979]
[1673639831800,0.00898386,19352.0,19351.0,2.77847979]
[1673639832798,0.00898386,19352.0,19351.0,3.23700765]
[1673639833029,0.00898386,19352.0,19351.0,2.89859733]
[1673639833267,0.00898386,19352.0,19351.0,2.77847979]
[1673639833787,0.00898386,19352.0,19351.0,3.23705419]
[1673639834042,0.00898386,19352.0,19351.0,3.05717173]
[1673639834268,0.00898386,19352.0,19351.0,2.93705419]
[1673639836247,0.00898386,19352.0,19351.0,2.77847979]
[1673639836494,0.00898386,19352.0,19351.0,3.45883711]
[1673639836754,3.86e-06,19352.0,19351.0,3.70571249]
[1673639837017,0.01554308,19354.0,19351.0,3.82583003]
[1673639837280,0.01554308,19354.0,19353.0,1.12582124]
[1673639837514,0.01554308,19354.0,19353.0,3.68178864]
[1673639837768,0.00855521,19354.0,19353.0,3.40100618]
[1673639838567,0.01155521,19354.0,19353.0,3.40100618]
[1673639838811,0.00855521,19354.0,19353.0,3.40100618]
[1673639839046,0.01155521,19354.0,19353.0,3.99715179]
[1673639839546,0.01155521,19354.0,19353.0,4.52338449]
[1673639840066,0.01155521,19354.0,19353.0,4.06523888]
[1673639840797,0.01155521,19354.0,19353.0,4.74183118]
[1673639841050,0.01155521,19354.0,19353.0,4.06523888]
[1673639841560,0.0153918,19355.0,19353.0,5.00018118]
[1673639841807,0.0153918,19355.0,19354.0,2.5797714]
[1673639842054,0.0153918,19355.0,19354.0,4.3429764]
[1673639842306,0.0153918,19355.0,19354.0,3.6663841]
[1673639842572,0.01537416,19356.0,19355.0,0.2417792]
[1673639842814,7.416e-05,19356.0,19355.0,3.22917254]
[1673639843071,7.416e-05,19356.0,19355.0,4.02032861]
[1673639844322,0.00207416,19356.0,19355.0,4.15832861]
[1673639844567,0.00207416,19356.0,19355.0,3.58029554]
[1673639845049,0.00207416,19356.0,19355.0,3.28029554]
[1673639845783,0.00160706,19356.0,19355.0,3.28029554]
[1673639846279,0.00160706,19356.0,19355.0,3.58029554]
[1673639846520,0.00160706,19356.0,19355.0,3.66194537]
[1673639847228,0.00160706,19356.0,19355.0,3.66200537]
[1673639848235,0.00160706,19356.0,19355.0,3.58035554]
[1673639848739,0.00160706,19356.0,19355.0,3.28035554]
[1673639849219,0.00160706,19356.0,19355.0,3.58035554]
[1673639849462,0.00160706,19356.0,19355.0,3.28035554]
[1673639849719,0.00160706,19356.0,19355.0,3.58035554]
[1673639850955,7.06e-06,19356.0,19355.0,4.15778076]
[1673639851226,7.06e-06,19356.0,19355.0,4.18916523]
[1673639851504,7.06e-06,19356.0,19355.0,4.2414453]
[1673639853231,1.089e-05,19357.0,19356.0,0.25211]
[1673639853479,1.089e-05,19357.0,19356.0,3.72942234]
[1673639853715,0.00873269,19358.0,19357.0,0.1]
[1673639853961,0.00873269,19358.0,19357.0,3.63310297]
[1673639854190,0.00873269,19358.0,19357.0,3.96570766]
[1673639854919,0.00873269,19358.0,19357.0,3.38872634]
[1673639855166,0.01073269,19358.0,19357.0,3.52772634]
[1673639855912,0.01073269,19358.0,19357.0,3.58000641]
[1673639856156,0.01073269,19358.0,19357.0,4.15117508]
[1673639857756,0.01073269,19358.0,19357.0,3.69370345]
[1673639858209,0.01073269,19358.0,19357.0,3.69372125]
[1673639858461,0.01073269,19358.0,19357.0,4.15119288]
[1673639858699,1.044e-05,19360.0,19357.0,4.68335432]
[1673639858943,0.01609341,19362.0,19359.0,1.35074629]
[1673639859171,0.01609341,19362.0,19361.0,0.38098273]
[1673639859419,0.01609341,19362.0,19361.0,2.86346411]
[1673639859653,0.01609341,19362.0,19361.0,3.40273362]
[1673639859893,0.01609341,19362.0,19361.0,3.02175134]
[1673639860415,0.01694876,19364.0,19361.0,3.82805134]
[1673639860645,0.01694876,19364.0,19363.0,0.95233037]
[1673639860899,0.01694876,19364.0,19363.0,3.37640675]
[1673639861160,0.01694876,19364.0,19363.0,3.04239162]
[1673639862384,0.01694876,19364.0,19363.0,4.09722131]
[1673639862624,0.01694876,19364.0,19363.0,4.08280933]
[1673639863384,0.01694876,19364.0,19363.0,4.23522312]
[1673639863645,0.01694876,19364.0,19363.0,4.38757838]
[1673639863862,0.01694876,19364.0,19363.0,4.23516323]
[1673639864122,0.01694876,19364.0,19363.0,4.94511198]
[1673639864371,0.01694876,19364.0,19363.0,4.38757838]
[1673639864615,0.01324082,19364.0,19363.0,4.26800857]
[1673639865103,0.01324082,19364.0,19363.0,3.70658387]
[1673639865343,0.01324082,19364.0,19363.0,4.3076482]
[1673639865592,0.01324082,19364.0,19363.0,3.70658387]
[1673639865847,0.01324082,19364.0,19363.0,4.23518086]
[1673639866099,0.01324082,19364.0,19363.0,4.08280933]
[1673639866329,0.01324082,19364.0,19363.0,4.53994271]
[1673639867546,0.01324082,19364.0,19363.0,4.86294794]
[1673639867800,0.01324082,19364.0,19363.0,4.56294794]
[1673639868046,0.01324082,19364.0,19363.0,4.0408733]
[1673639868295,0.01324082,19364.0,19363.0,3.81242518]
[1673639868527,0.01324082,19364.0,19363.0,4.24539982]
[1673639868777,0.01324082,19364.0,19363.0,4.0408733]
[1673639869023,0.01324082,19364.0,19363.0,4.47384794]
[1673639869265,0.01324082,19364.0,19363.0,4.77384794]
[1673639869513,0.01324082,19364.0,19363.0,4.05676974]
[1673639869760,0.01324082,19364.0,19363.0,3.70961054]
[1673639869973,0.01324082,19364.0,19363.0,3.03106856]
[1673639870480,0.01324082,19364.0,19363.0,3.18337784]
[1673639870718,0.01324082,19364.0,19363.0,3.46511234]
[1673639871227,0.01324082,19364.0,19363.0,4.14612114]
[1673639872673,0.00615508,19364.0,19363.0,3.76511234]
[1673639872905,0.00615508,19364.0,19363.0,4.14623279]
[1673639874441,0.00615508,19364.0,19363.0,3.76511234]
[1673639877653,0.00615508,19364.0,19363.0,3.81739241]
[1673639877902,0.00615508,19364.0,19363.0,4.19867401]
[1673639878148,0.00615508,19364.0,19363.0,3.81739241]
[1673639878875,0.00615508,19364.0,19363.0,4.19867782]
[1673639879179,0.00615508,19364.0,19363.0,4.39526248]
[1673639879901,0.00615508,19364.0,19363.0,4.34818189]
[1673639881124,0.00615508,19364.0,19363.0,4.25908189]
[1673639881364,0.00615508,19364.0,19363.0,3.58042327]
[1673639882135,0.00615508,19364.0,19363.0,2.91149911]
[1673639882376,0.00615508,19364.0,19363.0,2.68247126]
[1673639883867,0.00615508,19364.0,19363.0,2.91149911]
[1673639884856,0.00615508,19364.0,19363.0,2.75877579]
[1673639885378,0.00615508,19364.0,19363.0,3.06397527]
[1673639886627,0.00615508,19364.0,19363.0,2.83494742]
[1673639887367,0.00615508,19364.0,19363.0,2.20555648]
[1673639887610,0.05346919,19364.0,19363.0,1.02034649]
[1673639887852,0.05346919,19364.0,19363.0,0.50389849]
[1673639888344,0.05346919,19364.0,19363.0,0.36589849]
[1673639888586,0.05446919,19364.0,19363.0,0.29088549]
[1673639888725,0.05446919,19364.0,19363.0,0.36589549]
[1673639888726,0.05346919,19364.0,19363.0,0.36589549]
[1673639889037,0.05346919,19364.0,19363.0,0.38221373]
[1673639889219,0.05446919,19364.0,19363.0,0.52121373]
[1673639889438,0.05346919,19364.0,19363.0,0.38221373]
[1673639889655,0.05346919,19364.0,19363.0,1.03766173]
[1673639889656,0.00715508,19364.0,19363.0,1.03766173]
[1673639889881,0.00715508,19364.0,19363.0,1.901354]
[1673639890095,0.00715508,19364.0,19363.0,2.63432864]
[1673639890304,0.00559385,19364.0,19363.0,3.09154223]
[1673639892082,0.00559385,19364.0,19363.0,2.65856759]
[1673639892301,0.00559385,19364.0,19363.0,2.79154223]
[1673639892455,0.00559385,19364.0,19363.0,2.35856759]
[1673639892877,0.00559385,19364.0,19363.0,1.901354]
[1673639893186,0.00559385,19364.0,19363.0,2.36065652]
[1673639893628,0.00559385,19364.0,19363.0,1.901354]
[1673639894058,0.00559385,19364.0,19363.0,2.9388514]
[1673639894456,0.00559385,19364.0,19363.0,2.36067598]
[1673639894700,0.00559385,19364.0,19363.0,2.53212176]
[1673639895381,0.00559385,19364.0,19363.0,2.83212176]
[1673639895600,0.00559385,19364.0,19363.0,3.83602658]
[1673639895834,0.00559385,19364.0,19363.0,3.92472658]
[1673639896521,0.00559385,19364.0,19363.0,4.04325866]
[1673639896791,0.00559385,19364.0,19363.0,3.36452121]
[1673639897016,0.0193201,19365.0,19364.0,0.00268351]
[1673639897237,0.0193201,19365.0,19364.0,3.20411685]
[1673639897456,0.01971277,19366.0,19364.0,3.58465279]
[1673639897675,0.01971277,19366.0,19365.0,0.95920734]
[1673639897967,0.01652942,19368.0,19365.0,0.95920734]
[1673639897968,0.01652942,19368.0,19366.0,0.01971]
[1673639898185,0.00876804,19368.0,19367.0,2.7692007]
[1673639898408,0.00876804,19368.0,19367.0,3.32643034]
[1673639898631,0.00876804,19368.0,19367.0,4.30441055]
[1673639898857,0.00876804,19368.0,19367.0,4.41967042]
[1673639899084,0.00876804,19368.0,19367.0,3.57143591]
[1673639899317,0.00876804,19368.0,19367.0,3.40183025]
[1673639899541,0.00876804,19368.0,19367.0,3.26371943]
[1673639899975,0.00876804,19368.0,19367.0,3.98976306]
[1673639900223,0.00876804,19368.0,19367.0,2.94718836]
[1673639901552,0.05229848,19368.0,19367.0,0.867297]
[1673639901787,0.14139848,19368.0,19367.0,0.350955]
[1673639902023,0.14139848,19368.0,19367.0,1.03976534]
[1673639902237,0.00876804,19368.0,19367.0,0.59562741]
[1673639902464,0.00976804,19368.0,19367.0,0.73362741]
[1673639903147,0.00876804,19368.0,19367.0,1.7694442]
[1673639903373,0.00976804,19368.0,19367.0,2.37003543]
[1673639903600,0.00976804,19368.0,19367.0,2.80301007]
[1673639903819,0.00976804,19368.0,19367.0,3.32182655]
[1673639904036,0.00876804,19368.0,19367.0,3.29814642]
[1673639904383,0.00976804,19368.0,19367.0,2.45916621]
[1673639904521,0.00976804,19368.0,19367.0,2.02619157]
[1673639904771,0.00976804,19368.0,19367.0,1.9109317]
[1673639905019,0.00976804,19368.0,19367.0,2.64390634]
[1673639905269,0.00876804,19368.0,19367.0,3.38724642]
[1673639905526,0.00976804,19368.0,19367.0,3.52524642]
[1673639906293,0.00976804,19368.0,19367.0,3.38724642]
[1673639906294,0.00652853,19368.0,19367.0,3.38724642]
[1673639906544,0.00752853,19368.0,19367.0,3.52524642]
[1673639907795,0.00752853,19368.0,19367.0,3.70344642]
[1673639908047,0.00386222,19368.0,19367.0,3.07774628]
[1673639909045,0.00386222,19368.0,19367.0,3.66539141]
[1673639910901,0.01694876,19370.0,19368.0,0.00385978]
[1673639911151,0.01694876,19370.0,19369.0,2.7695847]
[1673639911402,0.01694876,19370.0,19369.0,1.70365428]
[1673639911645,0.0616871,19370.0,19369.0,1.62740994]
[1673639911938,0.01694876,19370.0,19369.0,1.93291685]
[1673639912209,0.27497976,19370.0,19369.0,0.90034085]
[1673639912459,0.1781,19370.0,19369.0,0.38193075]
[1673639912966,0.1781,19370.0,19369.0,0.15277969]
[1673639913228,0.1791,19370.0,19369.0,0.15277969]
[1673639913488,0.23355742,19370.0,19369.0,0.15277969]
[1673639913733,0.23555742,19370.0,19369.0,0.138]
[1673639913987,0.48840494,19370.0,19368.0,0.38193075]
[1673639914232,0.48840494,19370.0,19369.0,0.14006]
[1673639914233,1.43392894,19370.0,19369.0,0.14006]
[1673639914514,1.7257,19370.0,19369.0,0.14006]
[1673639914747,1.6376,19370.0,19369.0,0.22206]
[1673639914991,0.33845111,19370.0,19369.0,6e-05]
[1673639915502,0.1776,19370.0,19369.0,0.15283969]
[1673639915747,0.0891,19371.0,19369.0,0.90402561]
[1673639916501,0.0891,19371.0,19370.0,0.15277969]
[1673639917030,0.0891,19371.0,19370.0,0.38193075]
[1673639917791,0.0901,19371.0,19370.0,0.23477969]
[1673639918038,0.11839871,19372.0,19370.0,0.23477969]
[1673639918039,0.06294876,19372.0,19370.0,0.25277969]
[1673639918277,0.46269832,19374.0,19371.0,0.59477607]
[1673639918529,0.07789832,19374.0,19371.0,1.60125724]
[1673639919246,0.07789832,19374.0,19371.0,1.54650647]
[1673639919743,0.05587223,19373.0,19371.0,1.54650647]
[1673639919987,0.05587223,19373.0,19371.0,1.31735541]
[1673639920242,0.05587223,19373.0,19371.0,1.31935541]
[1673639920973,0.26617717,19373.0,19371.0,0.15272501]
[1673639921218,0.2782,19372.0,19371.0,0.012]
[1673639921462,1.635092,19372.0,19371.0,0.012]
[1673639921702,1.310616,19372.0,19371.0,0.012]
[1673639921966,1.635092,19372.0,19371.0,0.012]
[1673639922462,1.635092,19372.0,19371.0,6e-05]
[1673639922704,1.635092,19372.0,19371.0,0.08206]
[1673639922705,1.636092,19372.0,19371.0,0.08206]
[1673639924180,1.536092,19372.0,19371.0,0.08206]
[1673639924415,1.5903962,19372.0,19371.0,0.08206]
[1673639924689,1.5924923,19372.0,19371.0,0.08206]
[1673639925325,1.5651923,19372.0,19371.0,0.08206]
[1673639925606,1.5651923,19372.0,19371.0,0.082]
[1673639925819,1.508792,19372.0,19371.0,0.082]
[1673639926361,1.55273889,19372.0,19371.0,0.082]
[1673639927562,1.56503706,19372.0,19371.0,0.082]
[1673639927800,1.508792,19372.0,19371.0,0.082]
[1673639928271,2.025,19372.0,19371.0,0.082]
[1673639928521,2.1223,19372.0,19371.0,0.082]
[1673639928756,3.15506337,19372.0,19371.0,0.082]
[1673639929003,3.45506337,19372.0,19371.0,0.082]
[1673639929484,3.85636337,19372.0,19371.0,0.082]
[1673639929986,4.38259607,19372.0,19371.0,0.082]
[1673639930485,5.22445187,19372.0,19370.0,6e-05]
[1673639930719,2.32244637,19371.0,19370.0,6e-05]
[1673639930958,3.35491637,19371.0,19370.0,6e-05]
[1673639931683,3.87115137,19371.0,19370.0,6e-05]
[1673639931927,4.39449238,19371.0,19370.0,6e-05]
[1673639932647,4.49249238,19371.0,19370.0,0.00806]
[1673639933612,3.96915137,19371.0,19370.0,0.00806]
[1673639933881,3.06915137,19371.0,19370.0,0.00806]
[1673639935146,3.36915137,19371.0,19370.0,0.00806]
[1673639936841,5.15512407,19371.0,19370.0,0.00806]
[1673639937088,0.1,19370.0,19364.0,0.00366043]
[1673639937330,0.0891,19365.0,19364.0,0.00366043]
[1673639937575,1.86963194,19365.0,19364.0,0.00366043]
[1673639938068,1.659327,19365.0,19364.0,0.00366043]
[1673639938309,1.659327,19365.0,19364.0,0.00866043]
[1673639938555,1.659327,19365.0,19364.0,0.00366043]
[1673639938806,1.670327,19365.0,19364.0,0.07466043]
[1673639939543,1.659327,19365.0,19364.0,0.00366043]
[1673639939811,1.963327,19365.0,19364.0,0.04066043]
[1673639940796,2.01296356,19365.0,19364.0,0.04066043]
[1673639941049,1.71296356,19365.0,19364.0,0.04066043]
[1673639941788,1.98424216,19365.0,19364.0,0.03566043]
[1673639942049,2.28424216,19365.0,19364.0,0.03566043]
[1673639942863,0.1,19364.0,19361.0,0.00390519]
[1673639943114,0.0891,19362.0,19361.0,0.00390519]
[1673639943359,2.039823,19362.0,19361.0,0.00390519]
[1673639943603,2.039823,19362.0,19354.0,0.38187607]
[1673639943604,0.0039,19361.0,19354.0,0.38187607]
[1673639943858,0.0039,19361.0,19353.0,0.68741385]
[1673639943859,2.166232,19359.0,19353.0,0.70245469]
[1673639944104,0.23140294,19358.0,19355.0,0.53224423]
[1673639944361,1.357636,19357.0,19355.0,0.53224423]
[1673639944613,1.033216,19357.0,19356.0,0.54158988]
[1673639944853,1.10002202,19357.0,19354.0,0.61346312]
[1673639945108,1.31032696,19357.0,19354.0,0.61346312]
[1673639945861,1.10002202,19357.0,19354.0,0.61346312]
[1673639946346,1.30666653,19357.0,19354.0,0.61346312]
[1673639946592,1.30666653,19357.0,19354.0,0.61946312]
[1673639946593,0.1,19356.0,19354.0,0.61946312]
[1673639946852,0.516662,19355.0,19354.0,0.61946312]
[1673639947352,0.516662,19355.0,19354.0,0.61346312]
[1673639947595,0.516662,19355.0,19351.0,0.65762501]
[1673639947596,0.516662,19355.0,19352.0,0.62010031]
[1673639947837,0.72696694,19355.0,19352.0,0.62010031]
[1673639948080,0.516662,19355.0,19354.0,0.006]
[1673639948326,0.57559211,19355.0,19352.0,0.62010031]
[1673639948568,0.0891,19354.0,19352.0,0.62010031]
[1673639948834,1.222502,19354.0,19352.0,0.006]
[1673639949072,1.222502,19354.0,19350.0,1.03451436]
[1673639949323,0.0885,19353.0,19350.0,1.03451436]
[1673639949571,0.516742,19352.0,19350.0,1.03451436]
[1673639949815,0.516742,19352.0,19349.0,0.1052927]
[1673639950336,0.87598928,19353.0,19350.0,0.57121831]
[1673639950587,0.66568434,19353.0,19350.0,0.57121831]
[1673639951067,0.66568434,19353.0,19350.0,0.61996908]
[1673639951068,0.14894934,19353.0,19350.0,0.61996908]
[1673639951310,0.013,19352.0,19350.0,0.56521831]
[1673639951579,0.605684,19355.0,19351.0,0.1]
[1673639951826,0.014,19353.0,19352.0,0.05475077]
[1673639952064,0.05420999,19355.0,19352.0,0.05475077]
[1673639952065,0.05420999,19355.0,19352.0,0.215125]
[1673639952312,0.05332994,19354.0,19352.0,0.05475077]
[1673639952556,0.05332994,19354.0,19351.0,0.70585]
[1673639952800,0.05332994,19354.0,19351.0,1.222619]
[1673639953031,0.014,19353.0,19352.0,0.80186851]
[1673639954048,0.04786003,19355.0,19352.0,0.79586851]
[1673639954293,0.04786003,19355.0,19352.0,0.58074551]
[1673639954779,0.014,19353.0,19352.0,1.09748651]
[1673639955099,0.04786003,19355.0,19352.0,1.09748651]
[1673639955287,0.06186003,19355.0,19352.0,1.09748651]
[1673639955535,0.04786003,19355.0,19352.0,1.09748651]
[1673639955771,0.014,19353.0,19352.0,0.58674551]
[1673639956024,0.21030494,19353.0,19349.0,0.1939927]
[1673639956272,0.21030494,19352.0,19350.0,1.08501711]
[1673639956524,0.516716,19353.0,19350.0,0.56822511]
[1673639956764,0.516716,19353.0,19351.0,0.215135]
[1673639957010,0.516716,19353.0,19352.0,0.006]
[1673639957271,0.516716,19353.0,19350.0,0.66822511]
[1673639957515,0.530716,19353.0,19351.0,0.58248129]
[1673639957785,0.516716,19353.0,19351.0,0.58248129]
[1673639958025,0.530716,19353.0,19352.0,0.006]
[1673639958278,0.516716,19353.0,19351.0,0.58248129]
[1673639958515,0.530716,19353.0,19351.0,0.006]
[1673639958765,0.516716,19353.0,19350.0,0.75207767]
[1673639959033,0.530716,19353.0,19352.0,0.006]
[1673639959775,1.047431,19353.0,19352.0,0.006]
[1673639960016,1.033431,19353.0,19350.0,0.65207767]
[1673639960264,1.033431,19353.0,19349.0,0.0051027]
[1673639960265,0.05922264,19352.0,19349.0,0.0051027]
[1673639960498,1.30303958,19352.0,19349.0,0.69522347]
[1673639960718,1.40303958,19352.0,19349.0,0.0051027]
[1673639960978,1.60532774,19352.0,19349.0,0.0051027]
[1673639961225,0.15471996,19351.0,19349.0,0.0111027]
[1673639961472,1.18828196,19351.0,19349.0,0.0111027]
[1673639961954,1.18828196,19351.0,19349.0,0.0051027]
[1673639962434,1.28901387,19351.0,19349.0,0.0051027]
[1673639962694,0.05438228,19353.0,19350.0,0.74787156]
[1673639962941,0.05438228,19353.0,19351.0,0.215138]
[1673639963196,0.05438228,19353.0,19351.0,0.05475077]
[1673639963440,0.05438228,19353.0,19352.0,0.215127]
[1673639963696,0.05438228,19353.0,19351.0,0.516763]
[1673639963933,0.18838228,19353.0,19351.0,1.17331436]
[1673639964184,0.18838228,19353.0,19351.0,1.17231436]
[1673639964416,0.32238228,19353.0,19352.0,0.001]
[1673639964676,0.516868,19355.0,19352.0,0.22566]
[1673639964926,0.134,19353.0,19352.0,1.77797946]
[1673639965231,0.134,19353.0,19352.0,1.83835569]
[1673639965928,0.05467017,19355.0,19352.0,1.83835569]
[1673639966171,0.134,19353.0,19352.0,1.62422869]
[1673639966443,0.05467017,19355.0,19352.0,1.62322869]
[1673639966682,0.05467017,19355.0,19352.0,1.62822869]
[1673639966934,0.05467017,19355.0,19353.0,0.53407466]
[1673639967668,0.06967017,19355.0,19353.0,1.05078666]
[1673639967907,0.05467017,19355.0,19353.0,1.05078666]
[1673639968147,0.07067017,19355.0,19353.0,0.521712]
[1673639969876,0.05962357,19354.0,19353.0,0.521712]
[1673639970107,0.05951466,19354.0,19353.0,0.521712]
[1673639970607,0.05951466,19354.0,19353.0,0.736824]
[1673639970849,0.05951466,19354.0,19353.0,0.731824]
[1673639971321,0.07451466,19354.0,19353.0,0.736824]
[1673639972843,0.015,19354.0,19353.0,1.83232241]
[1673639973303,0.015,19354.0,19353.0,2.34903741]
[1673639973548,0.015,19354.0,19353.0,2.52974647]
[1673639973798,0.015,19354.0,19353.0,2.75889753]
[1673639974530,0.015,19354.0,19353.0,3.29358637]
[1673639974779,0.00019,19357.0,19354.0,0.1031657]
[1673639975021,0.00019,19357.0,19356.0,0.0891]
[1673639975272,0.00019,19357.0,19356.0,1.93368452]
[1673639975520,0.00019,19357.0,19356.0,1.71910552]
[1673639975775,0.00019,19357.0,19356.0,1.40100561]
[1673639976028,0.00019,19357.0,19356.0,1.248339]
[1673639976261,0.00019,19357.0,19356.0,0.731704]
[1673639976775,0.05198178,19358.0,19356.0,0.831704]
[1673639977019,0.05198178,19358.0,19356.0,0.616635]
[1673639977261,0.05198178,19358.0,19357.0,0.215056]
[1673639979425,0.05498178,19358.0,19357.0,0.354056]
[1673639984320,0.05498178,19358.0,19357.0,0.139]
[1673639986321,0.05498178,19358.0,19357.0,0.354055]
[1673639986566,0.05498178,19358.0,19357.0,0.139]
[1673639988225,0.003,19358.0,19357.0,0.29166661]
[1673639988454,0.003,19358.0,19357.0,0.73572152]
[1673639989703,0.003,19358.0,19357.0,1.2068844]
[1673639989961,0.003,19358.0,19357.0,2.4929629]
[1673639990204,0.003,19358.0,19357.0,2.67997874]
[1673639990448,0.003,19358.0,19357.0,2.42250576]
[1673639990703,0.003,19358.0,19357.0,1.90589776]
[1673639991183,0.003,19358.0,19357.0,2.36304082]
[1673639992902,0.003,19358.0,19357.0,2.87964882]
[1673639993149,0.003,19358.0,19357.0,3.53991477]
[1673639993396,0.003,19358.0,19357.0,2.65223673]
[1673639994137,0.003,19358.0,19357.0,1.99197078]
[1673639994379,0.003,19358.0,19357.0,2.87972996]
[1673639994858,0.00233508,19358.0,19357.0,2.87972996]
[1673639995115,0.00233508,19358.0,19357.0,3.50213911]
[1673639995346,0.00233508,19358.0,19357.0,2.61437993]
[1673639995920,0.00233508,19358.0,19357.0,2.67010773]
[1673639996149,0.00233508,19358.0,19357.0,2.42161872]
[1673639996402,0.00233508,19358.0,19357.0,2.87977]
[1673639996901,5.08e-06,19358.0,19357.0,3.39170219]
[1673639997145,0.01457339,19361.0,19358.0,0.10006]
[1673639997398,0.01457339,19361.0,19359.0,2.95431419]
[1673639997645,0.01476339,19361.0,19360.0,0.6445815]
[1673639997887,0.01476339,19361.0,19360.0,2.01058827]
[1673639998119,0.01476339,19361.0,19360.0,2.5026648]
[1673639998614,0.01373322,19364.0,19360.0,3.86798102]
[1673639998860,0.01373322,19364.0,19363.0,0.8647078]
[1673639999121,0.01373322,19364.0,19363.0,1.50915092]
[1673639999353,0.01373322,19364.0,19363.0,3.26951723]
[1673639999591,0.01373322,19364.0,19363.0,3.26951424]
[1673639999846,0.01373322,19364.0,19363.0,3.5746751]
[1673640000078,0.06078347,19368.0,19364.0,0.17796508]
[1673640000328,0.06078347,19368.0,19366.0,0.1]
[1673640000583,0.21030494,19368.0,19367.0,0.214698]
[1673640000809,0.516266,19370.0,19365.0,1.032745]
[1673640000810,0.04328717,19366.0,19365.0,1.032745]
[1673640001304,0.04328717,19366.0,19365.0,1.247464]
[1673640001805,0.01487063,19367.0,19365.0,1.246327]
[1673640002049,0.06538746,19367.0,19366.0,0.1]
[1673640002289,0.06538746,19367.0,19366.0,0.31471]
[1673640002793,0.06538746,19367.0,19366.0,0.314126]
[1673640004057,0.01487063,19367.0,19366.0,0.454126]
[1673640005527,0.01487063,19367.0,19366.0,0.35471]
[1673640006378,0.01487063,19367.0,19366.0,0.45471]
[1673640006630,0.01487063,19367.0,19366.0,1.62815545]
[1673640006870,0.01487063,19367.0,19366.0,2.14458345]
[1673640007345,0.01487063,19367.0,19366.0,2.092374]
[1673640007574,0.01487063,19367.0,19366.0,3.44437058]
[1673640008068,0.01487063,19367.0,19366.0,2.60028993]
[1673640008310,0.01487063,19367.0,19366.0,2.86622622]
[1673640009737,0.01487063,19367.0,19366.0,2.181274]
[1673640009975,0.01487063,19367.0,19366.0,2.60043334]
[1673640010218,0.01487063,19367.0,19366.0,2.75301345]
[1673640010454,0.01487063,19367.0,19366.0,3.07028362]
[1673640010931,0.01487063,19367.0,19366.0,2.84141345]
[1673640011237,0.01487063,19367.0,19366.0,3.36764615]
[1673640011474,0.01487063,19367.0,19366.0,3.59651632]
[1673640011970,0.01487063,19367.0,19366.0,3.76754615]
[1673640012207,0.01945982,19371.0,19367.0,0.1]
[1673640012490,0.01945982,19371.0,19370.0,0.1782]
[1673640012738,0.01945982,19371.0,19370.0,1.941642]
[1673640012972,0.01945982,19371.0,19370.0,1.763442]
[1673640013688,0.01945982,19371.0,19370.0,1.902442]
[1673640013933,0.01945982,19371.0,19370.0,1.763442]
[1673640014178,0.01945982,19371.0,19370.0,1.902442]
[1673640014883,0.01945982,19371.0,19370.0,2.46311623]
[1673640015882,0.01945982,19371.0,19370.0,1.902442]
[1673640016119,0.01945982,19371.0,19370.0,2.43499771]
[1673640019288,9.82e-06,19371.0,19370.0,3.46991282]
[1673640019522,9.82e-06,19371.0,19370.0,4.11003709]
[1673640019758,9.82e-06,19371.0,19370.0,3.11516205]
[1673640019998,9.82e-06,19371.0,19370.0,2.2896747]
[1673640020295,9.82e-06,19371.0,19370.0,3.7949762]
[1673640020527,0.01727968,19373.0,19371.0,5.018e-05]
[1673640020762,0.01727968,19373.0,19372.0,1.726124]
[1673640021005,0.01727968,19373.0,19372.0,2.37047744]
[1673640021488,0.01727968,19373.0,19372.0,1.940749]
[1673640021726,0.01727968,19373.0,19372.0,2.89671014]
[1673640021966,0.01727968,19373.0,19372.0,2.4669817]
[1673640022456,0.01727968,19373.0,19372.0,3.03571014]
[1673640022949,0.01727968,19373.0,19372.0,2.6059817]
[1673640023184,0.01727968,19373.0,19372.0,3.23537491]
[1673640023659,0.01727968,19373.0,19372.0,2.6059817]
[1673640023950,0.01727968,19373.0,19372.0,3.03567065]
[1673640024192,0.01727968,19373.0,19372.0,3.33567065]
[1673640025178,0.01727968,19373.0,19372.0,3.03567065]
[1673640025370,0.01727968,19373.0,19372.0,3.19161123]
[1673640025614,0.01727968,19373.0,19372.0,2.66537853]
[1673640026668,0.01727968,19373.0,19372.0,3.17719021]
[1673640026906,0.01727968,19373.0,19372.0,3.03591014]
[1673640027408,0.01227968,19373.0,19372.0,3.03591014]
[1673640027889,0.01227968,19373.0,19372.0,3.33591014]
[1673640028347,0.01890858,19376.0,19373.0,0.10253694]
[1673640028585,0.01890858,19376.0,19375.0,0.2782]
[1673640028841,0.01890858,19376.0,19375.0,2.48096287]
[1673640029353,0.01890858,19376.0,19375.0,2.56926287]
[1673640029578,0.01890858,19376.0,19375.0,3.00926287]
[1673640030289,0.01890858,19376.0,19375.0,2.70926287]
[1673640030555,0.01890858,19376.0,19375.0,2.25093632]
[1673640031225,0.01890858,19376.0,19375.0,2.06263632]
[1673640031878,0.0652692,19376.0,19375.0,1.386841]
[1673640032886,0.0652692,19376.0,19375.0,0.14]
[1673640033142,0.01890858,19376.0,19375.0,0.14]
[1673640033393,0.16984227,19376.0,19375.0,0.14]
[1673640033649,1.53132363,19376.0,19375.0,0.14]
[1673640033894,1.15961258,19376.0,19375.0,0.14]
[1673640034144,1.48404658,19376.0,19375.0,0.14]
[1673640034417,1.57314658,19376.0,19373.0,0.00253694]
[1673640034646,0.021298,19375.0,19373.0,0.00253694]
[1673640034914,1.20692651,19376.0,19373.0,0.64295641]
[1673640034915,0.68132451,19376.0,19373.0,0.64295641]
[1673640035163,0.01890858,19376.0,19375.0,0.13466]
[1673640035412,0.02790858,19376.0,19375.0,0.81819534]
[1673640035672,0.01890858,19376.0,19375.0,0.75444457]
[1673640036395,0.02790858,19376.0,19375.0,0.76344457]
[1673640037384,0.02790858,19376.0,19375.0,1.470603]
[1673640037629,0.02790858,19376.0,19375.0,1.559703]
[1673640037877,0.02790858,19376.0,19375.0,2.18969712]
[1673640038864,0.02790858,19376.0,19375.0,2.10059712]
[1673640039110,0.02790858,19376.0,19375.0,2.01149712]
[1673640039601,0.07923929,19376.0,19375.0,0.63899412]
[1673640039847,0.07923929,19376.0,19375.0,0.009]
[1673640041336,0.08773929,19376.0,19375.0,0.009]
[1673640041885,0.13640858,19376.0,19375.0,0.009]
[1673640042129,0.70856933,19376.0,19375.0,0.009]
[1673640042367,1.03300333,19376.0,19375.0,0.009]
[1673640042890,0.70856933,19376.0,19375.0,0.009]